bitfinex-derivatives/quotes_ETHF0:USTF0_20240905
["timestamp","ask_amount","ask_price","bid_price","bid_amount"]
[1725535610223,2.89,2389.9,2389.8,0.41844]
[1725535610530,3.30844,2389.9,2389.8,0.41846]
[1725535610720,2.89,2389.9,2389.8,0.41846]
[1725535610921,3.30846,2389.9,2389.7,1.52997]
[1725535611224,0.41846,2389.8,2389.7,1.52997]
[1725535612935,0.41846,2389.8,2389.7,1.1115]
[1725535613229,0.41846,2389.8,2389.7,0.7523]
[1725535613430,0.41846,2389.8,2389.7,1.17078]
[1725535614031,3.30845,2389.9,2389.7,1.17078]
[1725535616731,2.89626566,2390.1,2389.8,0.3692]
[1725535616931,2.89626566,2390.1,2389.9,0.41843]
[1725535616932,3.31468566,2390.1,2389.9,0.41843]
[1725535617335,2.89626566,2390.1,2389.9,0.41843]
[1725535617728,3.31468566,2390.1,2389.9,0.41843]
[1725535619938,1.21,2390.0,2389.9,0.41843]
[1725535620135,0.00626566,2390.1,2390.0,0.41843]
[1725535620332,1.63467566,2390.1,2389.9,0.41843]
[1725535620635,1.21,2390.0,2389.9,0.41843]
[1725535621039,1.62843,2390.0,2389.8,0.78765]
[1725535621541,1.21,2390.0,2389.9,0.41844]
[1725535621837,1.21,2390.0,2389.8,0.3692]
[1725535621838,1.62843,2390.0,2389.8,0.3692]
[1725535622339,0.41844,2389.9,2389.8,0.3692]
[1725535622833,0.41844,2389.9,2389.8,0.78766]
[1725535623239,0.41844,2389.9,2389.8,0.3692]
[1725535624241,0.41844,2389.9,2389.7,1.17077]
[1725535624539,1.21,2389.8,2389.7,1.17077]
[1725535628940,0.00626566,2390.1,2390.0,0.41843]
[1725535629146,4.111,2390.6,2390.0,1.62843]
[1725535629444,4.111,2390.6,2389.7,8.8447]
[1725535629445,0.41837,2390.3,2390.2,3.2078]
[1725535629646,0.41839,2390.2,2390.1,1.1315]
[1725535629837,1.62839,2390.2,2390.1,1.1315]
[1725535630146,1.62839,2390.2,2390.1,0.7517]
[1725535630638,1.21,2390.2,2390.1,0.7517]
[1725535631341,1.21,2390.2,2390.1,1.17011]
[1725535633240,0.73567891,2390.4,2390.3,0.41837]
[1725535633241,0.00627891,2390.4,2390.3,0.41837]
[1725535633841,0.00627891,2390.4,2390.3,0.78707]
[1725535635945,0.00627891,2390.4,2390.3,4.97027]
[1725535636446,1.21,2391.0,2390.3,12.80784]
[1725535636754,1.62826,2391.0,2390.8,3.62607]
[1725535637252,1.21,2391.2,2391.1,0.41822]
[1725535637442,1.62822,2391.2,2391.0,0.41824]
[1725535637747,0.41825,2391.0,2390.9,0.00627891]
[1725535637949,4.35388,2391.0,2390.9,0.00627891]
[1725535638250,14.53628,2391.0,2390.9,0.00627891]
[1725535638438,19.24503101,2391.0,2390.9,0.00627891]
[1725535639642,18.19940101,2391.0,2390.9,0.00627891]
[1725535639948,12.19940101,2391.0,2390.9,0.00627891]
[1725535640149,18.19940101,2391.0,2390.9,0.00627891]
[1725535640349,0.4183,2390.8,2390.5,0.79623]
[1725535640549,2.89,2390.8,2390.5,0.3779]
[1725535640849,0.41832,2390.7,2390.5,0.3779]
[1725535642539,0.41832,2390.6,2390.5,0.3779]
[1725535643845,0.41834,2390.5,2390.4,0.39487891]
[1725535644942,4.60154,2390.5,2390.4,0.00627891]
[1725535645149,4.96814,2390.5,2390.4,0.00627891]
[1725535645349,5.35114,2390.5,2390.4,0.00627891]
[1725535647641,0.3863,2390.7,2390.4,0.00627891]
[1725535647838,5.15661,2391.1,2390.4,3.21407891]
[1725535647839,0.41829,2390.8,2390.4,3.21407891]
[1725535648038,3.2498,2391.0,2390.4,3.21407891]
[1725535648039,2.89,2390.9,2390.5,0.77443]
[1725535648241,2.89,2390.9,2390.6,0.3752]
[1725535648242,0.4183,2390.8,2390.6,0.3752]
[1725535648442,2.89,2390.7,2390.6,0.3752]
[1725535649944,3.3083,2390.7,2390.6,0.3752]
[1725535653853,3.3083,2390.7,2390.6,0.7388]
[1725535656455,2.89,2390.7,2390.6,0.7388]
[1725535656748,3.3083,2390.7,2390.6,0.7388]
[1725535658054,3.3083,2390.7,2390.4,0.00627891]
[1725535658055,0.41834,2390.5,2390.4,0.00627891]
[1725535660750,0.41834,2390.5,2390.4,0.38917891]
[1725535661857,0.41833,2390.6,2390.4,0.80753891]
[1725535662055,0.41833,2390.6,2390.5,0.3587]
[1725535664455,0.41833,2390.6,2390.5,0.77704]
[1725535664665,2.89,2390.7,2390.5,0.77704]
[1725535664666,3.3083,2390.7,2390.6,0.41832]
[1725535665458,3.3083,2390.7,2390.6,0.79042]
[1725535665652,7.4915,2390.7,2390.6,0.3721]
[1725535666060,3.3083,2390.7,2390.6,0.3721]
[1725535667460,2.89,2390.7,2390.6,0.79042]
[1725535668662,3.3083,2390.7,2390.6,0.3721]
[1725535669362,2.89,2390.7,2390.6,0.3721]
[1725535669562,3.3083,2390.7,2390.6,0.3721]
[1725535670160,2.89,2390.7,2390.6,0.3721]
[1725535671758,3.3083,2390.7,2390.6,0.3721]
[1725535671965,0.41832,2390.6,2390.5,0.3587]
[1725535672360,1.62832,2390.7,2390.5,0.3587]
[1725535672565,1.62832,2390.7,2390.5,0.77703]
[1725535672761,0.41828,2390.9,2390.7,0.4183]
[1725535672961,1.62828,2390.9,2390.8,0.7558]
[1725535673268,1.62828,2390.9,2390.8,0.3779]
[1725535673463,1.99558,2390.9,2390.8,0.3779]
[1725535674061,0.4183,2390.7,2390.5,0.77703]
[1725535674364,0.4183,2390.7,2390.5,0.3587]
[1725535674365,1.21,2390.7,2390.5,0.3587]
[1725535674962,0.41832,2390.6,2390.5,0.3587]
[1725535676872,1.21,2390.7,2390.5,0.3587]
[1725535677062,0.3673,2390.9,2390.5,0.3587]
[1725535677269,1.6283,2390.7,2390.5,0.77703]
[1725535677663,1.21,2390.7,2390.6,0.41832]
[1725535678675,1.62828,2390.9,2390.7,0.4183]
[1725535678872,1.62827,2390.9,2390.8,0.7295]
[1725535680470,1.21,2390.9,2390.8,1.14779]
[1725535680666,0.00627891,2391.4,2390.8,12.1219]
[1725535680867,0.00627891,2391.4,2391.3,0.4182]
[1725535681469,0.00627891,2391.4,2391.1,4.4178]
[1725535681470,1.63446891,2391.4,2391.2,1.1139]
[1725535681776,1.21,2391.3,2391.2,1.1139]
[1725535682669,1.6282,2391.3,2391.2,1.1139]
[1725535683366,1.21,2391.3,2391.2,1.1139]
[1725535683876,1.21627891,2391.4,2391.2,1.1139]
[1725535684575,1.63445891,2391.4,2391.2,1.1139]
[1725535685778,0.4182,2391.3,2391.2,1.1139]
[1725535685978,1.21,2391.3,2391.2,1.1139]
[1725535686781,1.63446891,2391.4,2391.2,1.1139]
[1725535686976,1.6282,2391.3,2391.2,0.3729]
[1725535687183,0.41822,2391.2,2390.9,0.41827]
[1725535687380,4.82586165,2391.3,2391.0,0.3638]
[1725535687576,1.63446891,2391.4,2391.1,3.62602]
[1725535687882,1.63446891,2391.4,2391.2,0.3908]
[1725535688082,1.63446891,2391.4,2391.2,0.7856]
[1725535690880,0.4182,2391.3,2391.2,0.7856]
[1725535691080,0.41822,2391.2,2391.0,0.3638]
[1725535691480,1.62823,2391.1,2391.0,0.3638]
[1725535693578,1.21,2391.1,2391.0,0.3638]
[1725535694591,1.62823,2391.1,2391.0,0.3638]
[1725535699381,0.41823,2391.1,2391.0,0.3638]
[1725535700678,0.00627891,2391.4,2391.3,0.4182]
[1725535701389,0.00627891,2391.4,2391.3,1.1733]
[1725535701781,0.00627891,2391.4,2391.3,7.6104]
[1725535701989,3.2078,2391.9,2391.7,0.41811]
[1725535702187,3.2078,2391.9,2391.8,1.1323]
[1725535702581,0.41808,2392.0,2391.8,4.75821]
[1725535703187,1.21627891,2392.1,2391.8,4.3401]
[1725535703492,1.63434891,2392.1,2391.9,0.41809]
[1725535704087,0.41808,2392.0,2391.8,4.7582]
[1725535704687,0.42434891,2392.1,2391.8,4.7582]
[1725535704886,0.41808,2392.0,2391.8,4.3401]
[1725535705085,0.41809,2391.9,2391.8,4.3401]
[1725535705387,0.41809,2391.9,2391.8,1.1323]
[1725535706186,0.41809,2391.9,2391.8,0.7453]
[1725535706388,0.41809,2391.9,2391.7,0.00627891]
[1725535706389,0.41811,2391.8,2391.7,0.00627891]
[1725535708084,3.30811,2391.9,2391.7,0.00627891]
[1725535709479,0.41811,2391.8,2391.7,0.00627891]
[1725535710681,1.4634,2391.8,2391.7,0.00627891]
[1725535711891,10.00348223,2391.8,2391.7,0.00627891]
[1725535712492,16.00348223,2391.8,2391.7,0.00627891]
[1725535714696,12.89348223,2391.8,2391.7,0.00627891]
[1725535715291,8.5342,2391.8,2391.7,0.00627891]
[1725535719390,8.6923935,2391.8,2391.7,0.00627891]
[1725535719995,7.6471035,2391.8,2391.7,0.00627891]
[1725535720696,8.6923935,2391.8,2391.7,0.00627891]
[1725535721087,7.6471035,2391.8,2391.7,0.00627891]
[1725535721693,3.4663035,2391.8,2391.7,0.00627891]
[1725535723896,1.7763035,2391.8,2391.7,0.00627891]
[1725535724799,1.61811,2391.8,2391.7,0.00627891]
[1725535725097,0.41808,2392.0,2391.7,3.21407891]
[1725535725298,0.41808,2392.0,2391.8,0.7864]
[1725535725695,0.41808,2392.0,2391.8,1.20451]
[1725535726300,0.41808,2392.0,2391.8,0.7864]
[1725535727198,0.41808,2392.0,2391.8,1.20451]
[1725535727398,0.41808,2392.0,2391.8,0.7864]
[1725535729308,0.41809,2391.9,2391.8,0.7864]
[1725535729599,2.89,2391.9,2391.8,0.7864]
[1725535729802,3.30809,2391.9,2391.8,0.7864]
[1725535735013,0.41809,2391.9,2391.8,0.7864]
[1725535735211,0.41809,2392.0,2391.8,0.7864]
[1725535735912,0.41809,2391.9,2391.8,0.7864]
[1725535737005,0.41809,2392.0,2391.8,1.20451]
[1725535737508,0.00627891,2392.1,2391.8,0.7864]
[1725535737809,0.42433891,2392.1,2391.9,0.41808]
[1725535738108,0.42433891,2392.1,2392.0,0.79478]
[1725535738109,0.00627891,2392.1,2392.0,0.79478]
[1725535739108,0.42433891,2392.1,2392.0,0.3767]
[1725535739311,0.41809,2391.9,2391.8,0.7864]
[1725535739516,0.41809,2391.9,2391.8,1.1631]
[1725535740606,0.41809,2392.0,2391.8,1.58121]
[1725535742817,2.89627891,2392.1,2391.8,1.1631]
[1725535743016,0.00627891,2392.1,2392.0,0.41808]
[1725535743412,0.00627891,2392.1,2392.0,3.62588]
[1725535744216,0.418,2392.5,2392.3,0.41802]
[1725535744416,0.41801,2392.4,2392.3,0.41802]
[1725535744623,0.41801,2392.4,2392.2,0.41803]
[1725535744810,0.41801,2392.4,2392.3,0.41802]
[1725535745717,0.418,2392.5,2392.3,0.41802]
[1725535746020,0.41801,2392.4,2392.3,0.41802]
[1725535746223,0.418,2392.5,2392.3,0.41802]
[1725535746521,0.418,2392.5,2392.3,3.62582]
[1725535746721,0.42425891,2392.6,2392.4,0.41801]
[1725535749815,0.42425891,2392.6,2392.5,0.41799]
[1725535749816,0.00627891,2392.6,2392.5,0.41799]
[1725535751430,0.42424891,2392.6,2392.4,0.41799]
[1725535751816,0.42424891,2392.6,2392.3,3.62582]
[1725535751817,0.00627891,2392.6,2392.3,3.62582]
[1725535752017,0.41801,2392.4,2392.3,3.2078]
[1725535752225,2.89627891,2392.6,2392.3,3.2078]
[1725535752419,0.41801,2392.4,2392.3,3.2078]
[1725535752816,0.418,2392.5,2392.3,3.2078]
[1725535753023,0.41801,2392.4,2392.3,3.2078]
[1725535753425,0.41801,2392.4,2392.2,0.41803]
[1725535753926,1.61801,2392.4,2392.2,0.41803]
[1725535754326,1.61803,2392.3,2391.9,3.2078]
[1725535754920,0.41805,2392.2,2392.0,0.41808]
[1725535755119,1.61803,2392.3,2392.0,0.41808]
[1725535755330,0.41804,2392.2,2392.0,0.41808]
[1725535755830,0.41805,2392.2,2392.0,0.41807]
[1725535756221,0.41805,2392.2,2391.9,3.62588]
[1725535756525,0.41806,2392.1,2391.9,3.62588]
[1725535756724,0.3824,2392.3,2391.9,3.62588]
[1725535756725,0.41805,2392.2,2391.9,3.62588]
[1725535756925,0.41805,2392.2,2392.0,0.80297]
[1725535757931,0.41806,2392.1,2392.0,0.3849]
[1725535758430,0.41806,2392.1,2392.0,0.793447]
[1725535759931,0.41805,2392.2,2392.0,1.211527]
[1725535760331,0.41805,2392.2,2392.0,1.19448]
[1725535760836,0.3824,2392.3,2392.0,0.7764]
[1725535760837,0.401013,2392.1,2392.0,0.7764]
[1725535761132,0.3824,2392.3,2392.0,0.7764]
[1725535761133,0.41805,2392.2,2392.0,1.19447]
[1725535761725,0.80044,2392.3,2392.1,0.41806]
[1725535761926,0.41804,2392.2,2392.0,1.19446]
[1725535764243,0.41804,2392.2,2392.0,1.55136]
[1725535766239,0.41804,2392.2,2392.0,4.75916]
[1725535766539,0.41803,2392.3,2392.1,0.41805]
[1725535766740,0.41803,2392.3,2392.0,4.3411]
[1725535766933,0.41803,2392.3,2392.2,0.41804]
[1725535767135,1.045,2392.5,2392.2,0.41804]
[1725535767330,0.41802,2392.4,2392.2,0.41804]
[1725535767938,0.41803,2392.3,2392.1,0.41805]
[1725535769035,0.3711,2392.2,2392.1,0.41805]
[1725535769241,0.78915,2392.2,2392.0,4.75917]
[1725535769647,0.41806,2392.1,2392.0,3.9842]
[1725535770534,0.41805,2392.2,2392.0,4.40228]
[1725535770940,1.18134,2392.3,2392.1,0.41806]
[1725535771142,0.7633,2392.3,2392.0,3.9842]
[1725535771341,0.7633,2392.3,2392.0,4.40226]
[1725535771342,0.41804,2392.2,2392.0,4.40226]
[1725535772541,0.41804,2392.2,2392.0,1.19446]
[1725535772736,0.41804,2392.2,2392.0,4.40226]
[1725535774546,0.41803,2392.3,2392.1,0.41806]
[1725535774847,0.41804,2392.2,2392.0,4.40227]
[1725535775747,0.41806,2392.1,2392.0,3.9842]
[1725535775935,0.41806,2392.1,2392.0,4.40228]
[1725535776242,1.61805,2392.2,2392.0,4.40228]
[1725535777244,0.41805,2392.2,2392.0,4.40228]
[1725535777633,1.2,2392.3,2392.0,3.9842]
[1725535777834,1.2,2392.3,2392.1,0.41805]
[1725535777835,0.41803,2392.3,2392.1,0.41805]
[1725535778035,1.29125542,2392.6,2392.0,3.9842]
[1725535778235,0.00627891,2392.6,2392.1,1.2]
[1725535778436,0.00627891,2392.6,2392.3,0.41801]
[1725535778643,0.41799,2392.5,2392.4,0.3562]
[1725535778838,0.42425891,2392.6,2392.4,0.741]
[1725535779043,0.42425891,2392.6,2392.4,1.15899]
[1725535779044,0.00627891,2392.6,2392.4,1.15899]
[1725535779236,0.00627891,2392.6,2392.5,0.41799]
[1725535779636,0.00627891,2392.6,2392.4,1.15899]
[1725535780049,0.42424891,2392.6,2392.4,1.15899]
[1725535781041,0.00627891,2392.6,2392.4,1.15899]
[1725535781241,0.00627891,2392.6,2392.5,0.41799]
[1725535783246,0.42424891,2392.6,2392.4,1.159]
[1725535783437,0.00627891,2392.6,2392.4,1.159]
[1725535785752,0.42424891,2392.6,2392.4,1.159]
[1725535786152,0.42424891,2392.6,2392.4,1.15899]
[1725535786654,0.42424891,2392.6,2392.5,0.41799]
[1725535788343,0.42424891,2392.6,2392.4,0.741]
[1725535788344,0.42424891,2392.6,2392.4,1.15899]
[1725535788749,0.42424891,2392.6,2392.4,0.741]
[1725535788750,0.41799,2392.5,2392.4,0.741]
[1725535790044,0.42425891,2392.6,2392.5,0.41799]
[1725535790350,0.42425891,2392.6,2392.4,1.159]
[1725535792658,0.00627891,2392.6,2392.5,4.59799]
[1725535794253,0.00627891,2392.6,2392.5,4.98859]
[1725535796062,0.00627891,2392.6,2392.5,8.19639]
[1725535796763,0.42424891,2392.6,2392.5,8.19639]
[1725535796952,1.62424891,2392.6,2392.5,0.3906]
[1725535797551,0.42424891,2392.6,2392.5,0.3906]
[1725535800470,0.42424891,2392.6,2392.5,0.80859]
[1725535800672,0.00627891,2392.6,2392.5,0.80859]
[1725535802366,0.41799,2392.5,2392.4,0.741]
[1725535802567,0.38637891,2392.6,2392.4,1.15899]
[1725535802762,0.80435891,2392.6,2392.4,1.15899]
[1725535802962,0.38637891,2392.6,2392.4,1.15899]
[1725535803161,0.41804,2392.2,2392.1,3.62586]
[1725535803365,1.61804,2392.2,2392.1,3.2078]
[1725535803770,0.41802,2392.4,2392.1,3.62586]
[1725535804073,0.41802,2392.4,2392.2,0.41804]
[1725535804266,1.43133891,2392.6,2392.3,0.3579]
[1725535804267,0.80435891,2392.6,2392.3,0.3579]
[1725535804576,0.80435891,2392.6,2392.2,1.16063]
[1725535804577,0.41801,2392.4,2392.2,1.16063]
[1725535805075,0.41802,2392.3,2392.2,0.7426]
[1725535805379,0.41802,2392.3,2392.1,3.62585]
[1725535805380,0.41804,2392.2,2392.1,3.2078]
[1725535805571,0.80734,2392.2,2392.1,3.2078]
[1725535806465,0.80734,2392.2,2391.9,0.7581]
[1725535806466,0.41807,2392.1,2391.9,0.7581]
[1725535806671,0.41811,2391.9,2391.7,0.00627891]
[1725535806875,1.61811,2391.9,2391.7,0.00627891]
[1725535807065,1.2,2391.9,2391.7,0.00627891]
[1725535807263,1.61809,2391.9,2391.7,0.00627891]
[1725535807575,1.97578,2392.0,2391.7,0.00627891]
[1725535807968,0.77578,2392.0,2391.7,0.00627891]
[1725535810668,0.4181,2391.9,2391.7,0.00627891]
[1725535811564,0.77578,2392.0,2391.7,0.00627891]
[1725535812674,0.79437,2392.1,2391.7,0.42440891]
[1725535812873,0.41807,2392.1,2391.8,0.3858]
[1725535813074,0.41807,2392.1,2391.8,0.7567]
[1725535813580,0.41808,2392.0,2391.8,0.7567]
[1725535815281,0.41807,2392.1,2391.8,1.17481]
[1725535816380,0.3893,2392.2,2391.8,1.17481]
[1725535816571,0.41808,2392.1,2391.8,1.17481]
[1725535816977,0.3893,2392.2,2391.8,1.17481]
[1725535816978,0.41808,2392.0,2391.8,1.17481]
[1725535817577,0.41807,2392.1,2391.8,1.17481]
[1725535817787,1.14843,2392.3,2392.1,0.41806]
[1725535817978,1.14843,2392.3,2391.9,3.2078]
[1725535817979,0.418,2392.5,2392.2,3.28]
[1725535818285,0.7202,2392.7,2392.4,0.41799]
[1725535818576,1.13816,2392.7,2392.5,3.5923]
[1725535818784,0.7202,2392.7,2392.5,3.5923]
[1725535818980,0.7202,2392.7,2392.5,3.60934707]
[1725535820183,0.7202,2392.7,2392.5,0.40154707]
[1725535820377,0.41795,2392.8,2392.5,0.40154707]
[1725535821677,0.3769,2393.0,2392.5,4.99953707]
[1725535821879,0.79648,2393.2,2392.5,13.47154707]
[1725535822075,0.3786,2393.2,2392.9,0.41791]
[1725535822278,0.79647,2393.2,2393.0,0.7749]
[1725535822981,0.79647,2393.2,2393.1,0.01704707]
[1725535827490,0.16761181,2393.3,2393.1,0.01704707]
[1725535827491,0.00627891,2393.3,2393.1,0.01704707]
[1725535827992,0.00627891,2393.3,2393.2,0.01704707]
[1725535828193,0.42412891,2393.3,2393.2,0.01704707]
[1725535828591,0.00627891,2393.3,2393.2,0.01704707]
[1725535830195,0.42412891,2393.3,2393.2,0.01704707]
[1725535830391,0.00627891,2393.3,2393.2,0.01704707]
[1725535830995,0.00627891,2393.3,2393.2,0.43491707]
[1725535831496,0.00627891,2393.3,2393.2,0.01704707]
[1725535831689,0.42412891,2393.3,2393.2,0.01704707]
[1725535832784,4.35875891,2393.3,2393.2,0.01704707]
[1725535832987,8.90325891,2393.3,2393.2,0.01704707]
[1725535836698,1.63117502,2393.3,2393.2,0.01704707]
[1725535836990,0.42412891,2393.3,2393.2,0.01704707]
[1725535837207,0.42412891,2393.3,2393.2,0.38694707]
[1725535838591,0.00627891,2393.3,2393.2,0.38694707]
[1725535838895,0.00627891,2393.3,2393.2,4.98321707]
[1725535842989,0.00627891,2393.3,2393.2,10.98321707]
[1725535843189,0.41778,2393.7,2393.5,0.4178]
[1725535843388,0.41778,2393.7,2393.6,0.7439]
[1725535843997,0.41778,2393.7,2393.6,0.76094707]
[1725535844797,1.46224,2393.7,2393.6,0.01704707]
[1725535844997,0.41778,2393.7,2393.6,0.01704707]
[1725535848804,0.41777,2393.8,2393.6,0.43484707]
[1725535848996,0.41777,2393.8,2393.7,0.40454707]
[1725535850300,0.41777,2393.8,2393.7,0.01704707]
[1725535850301,1.46218,2393.8,2393.7,0.01704707]
[1725535850495,1.46218,2393.8,2392.9,3.21407891]
[1725535850496,1.04446,2393.7,2392.9,3.21407891]
[1725535850701,3.93454,2393.5,2393.1,0.7468]
[1725535851299,0.41787,2393.2,2393.1,0.7468]
[1725535851500,3.93454,2393.5,2393.1,0.7468]
[1725535851501,0.41786,2393.3,2393.1,0.7468]
[1725535852107,0.41787,2393.2,2393.1,0.7468]
[1725535852309,0.41786,2393.3,2393.1,0.7468]
[1725535852605,0.41787,2393.2,2393.1,0.7468]
[1725535852808,1.46254,2393.2,2393.1,0.3639]
[1725535853815,0.41787,2393.2,2393.1,0.3639]
[1725535856311,0.41786,2393.3,2393.1,0.3639]
[1725535856708,0.41786,2393.3,2393.2,0.358]
[1725535860509,0.41787,2393.2,2393.1,0.3639]
[1725535860706,0.41788,2393.1,2393.0,0.3758]
[1725535861817,1.4626,2393.1,2393.0,0.3758]
[1725535862115,0.4179,2393.0,2392.9,0.00627891]
[1725535862817,0.4179,2393.1,2392.9,0.00627891]
[1725535863611,0.41788,2393.2,2392.9,0.42419891]
[1725535863809,0.41784,2393.4,2393.1,0.41788]
[1725535864114,4.52881,2393.6,2393.3,3.62564]
[1725535864511,4.111,2393.6,2393.4,0.41782]
[1725535865115,4.111,2393.6,2393.5,0.41781]
[1725535865815,4.111,2393.6,2393.5,4.59541]
[1725535866019,0.00621266,2393.9,2393.5,4.1776]
[1725535866220,0.00621266,2393.9,2393.4,2.89]
[1725535866221,0.42396266,2393.9,2393.7,0.41778]
[1725535866413,0.42396266,2393.9,2393.8,0.3622]
[1725535868319,0.00621266,2393.9,2393.8,0.3622]
[1725535868817,0.00621266,2393.9,2393.8,13.84756]
[1725535871116,0.00621266,2393.9,2393.8,0.3622]
[1725535871325,0.41779,2393.7,2393.2,3.2078]
[1725535871521,0.4178,2393.6,2393.4,1.18832]
[1725535871730,0.41779,2393.7,2393.5,0.41781]
[1725535871910,0.41777,2393.8,2393.5,3.2078]
[1725535872111,0.41777,2393.8,2393.6,0.41779]
[1725535872622,0.42397266,2393.9,2393.7,0.80408]
[1725535872823,0.00621266,2393.9,2393.7,0.3863]
[1725535873017,0.41776,2393.8,2393.7,0.3863]
[1725535877028,0.42397266,2393.9,2393.7,0.3863]
[1725535878631,0.42396266,2393.9,2393.7,0.3863]
[1725535880034,0.42396266,2393.9,2393.7,0.80407]
[1725535880418,0.42396266,2393.9,2393.7,0.3863]
[1725535880633,0.41776,2393.8,2393.7,0.3863]
[1725535881225,0.42396266,2393.9,2393.7,0.80408]
[1725535881531,0.42396266,2393.9,2393.7,0.3863]
[1725535881722,0.41776,2393.8,2393.7,0.3863]
[1725535883331,0.41778,2393.7,2393.5,3.6256]
[1725535883529,0.78008,2393.7,2393.5,3.6256]
[1725535883729,0.78009,2393.7,2393.4,1.18832]
[1725535884328,0.78009,2393.7,2393.5,0.41781]
[1725535887732,0.4178,2393.6,2393.5,0.41781]
[1725535889539,0.78009,2393.7,2393.6,0.4178]
[1725535889837,0.00621266,2393.9,2393.8,0.41776]
[1725535890036,0.00621266,2393.9,2393.8,3.62556]
[1725535890242,0.00621266,2393.9,2393.8,7.80316]
[1725535890832,0.00621266,2393.9,2393.8,11.42496]
[1725535892137,0.00621266,2393.9,2393.8,17.42496]
[1725535892340,0.41771,2394.2,2394.1,0.41771]
[1725535893742,1.04416,2394.4,2394.1,3.2078]
[1725535893743,0.41767,2394.4,2394.1,3.2078]
[1725535893938,1.14635,2394.5,2394.3,0.41766]
[1725535894333,1.14635,2394.5,2394.4,0.41766]
[1725535894532,0.77905,2394.5,2394.3,0.41766]
[1725535895339,0.41764,2394.6,2394.4,0.41766]
[1725535895534,0.41764,2394.5,2394.3,0.41766]
[1725535896440,0.41764,2394.5,2394.4,0.41766]
[1725535896636,0.41761,2394.7,2394.4,3.2078]
[1725535896829,0.41759,2394.8,2394.6,0.41762]
[1725535897036,0.41758,2394.9,2394.7,0.7804]
[1725535897247,0.41759,2394.8,2394.7,0.7804]
[1725535897431,1.17716,2395.0,2394.7,1.198]
[1725535897633,1.17716,2395.0,2394.7,4.4058]
[1725535898049,0.79226,2395.0,2394.8,0.41759]
[1725535898232,0.41749,2395.4,2394.9,2.89]
[1725535898430,1.04366,2395.6,2395.0,3.2078]
[1725535898634,0.20744009,2395.7,2395.0,3.2078]
[1725535898635,0.41747,2395.5,2395.1,0.77533]
[1725535898840,0.4175,2395.3,2395.2,0.3842]
[1725535899028,0.4175,2395.3,2395.1,0.3578]
[1725535899232,0.41749,2395.4,2395.1,0.3578]
[1725535899432,0.41749,2395.4,2394.9,0.39046566]
[1725535899433,0.41753,2395.2,2394.9,0.39046566]
[1725535900442,0.41754,2395.1,2394.9,0.39046566]
[1725535900645,0.41755,2395.0,2394.9,0.00626566]
[1725535900939,0.41755,2395.1,2394.9,0.00626566]
[1725535901130,3.6253,2395.3,2394.9,0.00626566]
[1725535901131,0.41753,2395.2,2394.9,0.00626566]
[1725535901530,0.41754,2395.1,2394.9,0.00626566]
[1725535902843,0.41753,2395.2,2394.9,0.00626566]
[1725535903432,0.41751,2395.3,2394.9,0.79053566]
[1725535903637,0.41751,2395.3,2395.0,0.7303]
[1725535903845,0.4175,2395.3,2395.0,0.7303]
[1725535904345,0.41749,2395.4,2395.0,1.14784]
[1725535904935,0.41749,2395.4,2395.1,0.41753]
[1725535905140,0.41749,2395.4,2395.0,0.7303]
[1725535905141,0.41749,2395.4,2395.0,1.14785]
[1725535905343,3.2799,2395.5,2395.0,0.7303]
[1725535905640,0.41751,2395.3,2395.0,0.7303]
[1725535906034,0.41752,2395.2,2395.0,0.7303]
[1725535906234,0.79222,2395.2,2395.0,0.7303]
[1725535906538,0.3944,2395.1,2395.0,0.7303]
[1725535906843,0.81193,2395.1,2394.9,0.00626566]
[1725535908739,0.81194,2395.1,2394.9,0.00626566]
[1725535908946,0.3944,2395.1,2394.9,0.00626566]
[1725535910141,7.3188,2395.6,2395.0,7.0652]
[1725535910342,0.41748,2395.5,2395.2,3.2078]
[1725535910532,0.41748,2395.4,2395.2,3.2078]
[1725535910732,0.41748,2395.4,2395.2,3.5785]
[1725535910939,0.4175,2395.3,2395.2,3.5785]
[1725535911243,0.41755,2395.0,2394.9,0.00626566]
[1725535912140,1.46144,2395.0,2394.9,0.00626566]
[1725535912343,6.02714,2395.0,2394.9,0.00626566]
[1725535912935,9.23494,2395.0,2394.9,0.00626566]
[1725535914034,9.23494,2395.0,2394.4,0.7514]
[1725535914035,0.41762,2394.6,2394.4,0.7514]
[1725535914238,19.50640317,2395.0,2394.4,0.7514]
[1725535914239,0.41762,2394.7,2394.4,0.7514]
[1725535914538,3.2484,2394.9,2394.4,0.7514]
[1725535914739,0.79283,2394.6,2394.4,0.7514]
[1725535915341,0.3752,2394.6,2394.4,0.7514]
[1725535915849,0.42384151,2394.7,2394.4,0.7514]
[1725535918851,0.00622151,2394.7,2394.4,1.16905]
[1725535919049,0.42383151,2394.7,2394.4,1.16905]
[1725535919243,0.42383151,2394.7,2394.4,0.7514]
[1725535920751,0.41764,2394.5,2394.4,0.7514]
[1725535923646,0.41763,2394.6,2394.4,0.7514]
[1725535924052,0.41764,2394.6,2394.4,0.7514]
[1725535924943,0.00622151,2394.7,2394.4,0.7514]
[1725535925143,0.00622151,2394.7,2394.6,3.2078]
[1725535925339,0.00622151,2394.7,2394.6,4.02062]
[1725535925559,0.00622151,2394.7,2394.6,8.19662]
[1725535926444,4.111,2395.2,2394.8,0.41758]
[1725535926644,1.78174,2395.4,2394.9,6.4897]
[1725535926844,0.41754,2395.1,2394.9,3.2819]
[1725535927343,0.41753,2395.2,2394.9,3.2819]
[1725535927549,0.41753,2395.2,2394.9,3.69946]
[1725535928048,0.738,2395.4,2395.0,0.41755]
[1725535928049,0.41751,2395.3,2395.0,0.41755]
[1725535928246,0.41751,2395.3,2394.9,3.69946]